Workbook

Sheet 成绩表
A1: 2017年鄂托克前旗招聘中小学教师笔试成绩单
A2: 序号 | B2: 姓名 | C2: 准考证号 | D2: 笔试成绩 | E2: 政策加分 | K2: 备注
E3: 户籍加分 | F3: 工龄加分 | G3: 小计 | H3: 折合40% | I3: 民族加分 | J3: 笔试总成绩
A4: 1 | C4: 00002017001 | D4: 29.83 | G4: =SUM(D4:F4) -> 29.83 | H4: =G4*0.4 -> 11.93 | J4: =SUM(H4:I4) -> 11.93
A5: 2 | C5: 00002017002 | D5: 36.98 | G5: =SUM(D5:F5) -> 36.98 | H5: =G5*0.4 -> 14.79 | J5: =SUM(H5:I5) -> 14.79
A6: 3 | C6: 00002017003 | D6: 37.75 | G6: =SUM(D6:F6) -> 37.75 | H6: =G6*0.4 -> 15.10 | J6: =SUM(H6:I6) -> 15.10
A7: 4 | C7: 00002017004 | D7: 37.23 | G7: =SUM(D7:F7) -> 37.23 | H7: =G7*0.4 -> 14.89 | J7: 14.89
A8: 5 | C8: 00002017005 | D8: 57.2 | G8: =SUM(D8:F8) -> 57.2 | H8: =G8*0.4 -> 22.88 | J8: 22.88
A9: 6 | C9: 00002017006 | D9: 0 | G9: 0 | H9: 0 | J9: 0 | K9: 缺考
A10: 7 | C10: 00002017007 | D10: 64.38 | G10: 64.38 | H10: =G10*0.4 -> 25.75 | J10: 25.75
A11: 8 | C11: 00002017008 | D11: 60.02 | G11: 60.02 | H11: 24.01 | J11: 24.01
A12: 9 | C12: 00002017009 | D12: 46.73 | G12: 46.73 | H12: 18.69 | J12: 18.69
A13: 10 | C13: 00002017010 | D13: 50.84 | G13: 50.84 | H13: 20.34 | J13: 20.34
A14: 11 | C14: 00002017011 | D14: 52.35 | G14: 52.35 | H14: 20.94 | J14: 20.94
A15: 12 | C15: 00002017012 | D15: 43.94 | G15: 43.94 | H15: 17.58 | J15: 17.58
A16: 13 | C16: 00002017013 | D16: 55.72 | G16: 55.72 | H16: 22.29 | J16: 22.29
A17: 14 | C17: 00002017014 | D17: 40.84 | G17: 40.84 | H17: 16.34 | I17: 2.5 | J17: 18.84
A18: 15 | C18: 00002017015 | D18: 41.94 | G18: 41.94 | H18: 16.78 | J18: =SUM(H18:I18) -> 16.78
A19: 16 | C19: 00002017016 | D19: 54.46 | G19: 54.46 | H19: 21.78 | I19: 2.5 | J19: 24.28
A20: 17 | C20: 00002017017 | D20: 46.68 | G20: 46.68 | H20: 18.67 | I20: 2.5 | J20: 21.17
A21: 18 | C21: 00002017018 | D21: 41.4 | G21: 41.4 | H21: 16.56 | I21: 2.5 | J21: 19.06
A22: 19 | C22: 00002017019 | D22: 59.61 | G22: 59.61 | H22: 23.84 | J22: 23.84
A23: 20 | C23: 00002017020 | D23: 58.93 | G23: 58.93 | H23: 23.57 | J23: 23.57
A24: 21 | C24: 00002017021 | D24: 63.01 | G24: 63.01 | H24: 25.20 | J24: 25.20
A25: 22 | C25: 00002017022 | D25: 0 | G25: 0 | H25: 0 | J25: 0 | K25: 缺考
A26: 23 | C26: 00002017023 | D26: 0 | G26: 0 | H26: 0 | J26: 0 | K26: 缺考
A27: 24 | C27: 00002017024 | D27: 31.04 | E27: 3 | G27: 34.04 | H27: 13.62 | J27: 13.62
A28: 25 | C28: 00002017025 | D28: 40.74 | G28: =SUM(D28:F28) -> 40.74 | H28: 16.30 | J28: 16.30
A29: 26 | C29: 00002017026 | D29: 39.61 | G29: 39.61 | H29: 15.84 | J29: 15.84
A30: 27 | C30: 00002017027 | D30: 53.12 | G30: 53.12 | H30: 21.25 | J30: 21.25
A31: 28 | C31: 00002017028 | D31: 53.37 | E31: 3 | G31: 56.37 | H31: 22.55 | J31: 22.55
A32: 29 | C32: 00002017029 | D32: 33.5 | E32: 3 | G32: 36.5 | H32: 14.60 | J32: 14.60
A33: 30 | C33: 00002017030 | D33: 43.61 | E33: 3 | G33: 46.61 | H33: 18.64 | J33: 18.64
A34: 31 | C34: 00002017031 | D34: 46.19 | E34: 3 | G34: 49.19 | H34: 19.68 | J34: 19.68
A35: 32 | C35: 00002017032 | D35: 42.43 | G35: 42.43 | H35: 16.97 | J35: 16.97
A36: 33 | C36: 00002017033 | D36: 33.61 | G36: 33.61 | H36: 13.44 | J36: 13.44
A37: 34 | C37: 00002017034 | D37: 49.31 | G37: 49.31 | H37: 19.72 | J37: 19.72
A38: 35 | C38: 00002017035 | D38: 49.2 | E38: 3 | G38: 52.2 | H38: 20.88 | J38: 20.88
A39: 36 | C39: 00002017036 | D39: 43.34 | G39: 43.34 | H39: 17.34 | J39: 17.34
A40: 37 | C40: 00002017037 | D40: 46.79 | E40: 3 | G40: 49.79 | H40: 19.92 | J40: 19.92
A41: 38 | C41: 00002017038 | D41: 41.75 | E41: 3 | G41: 44.75 | H41: 17.90 | J41: 17.90
A42: 39 | C42: 00002017039 | D42: 54.05 | E42: 3 | G42: 57.05 | H42: 22.82 | J42: 22.82
A43: 40 | C43: 00002017040 | D43: 31.45 | G43: 31.45 | H43: 12.58 | J43: 12.58
A44: 41 | C44: 00002017041 | D44: 41.64 | G44: 41.64 | H44: 16.66 | J44: 16.66
A45: 42 | C45: 00002017042 | D45: 45.56 | G45: 45.56 | H45: 18.22 | J45: 18.22
A46: 43 | C46: 00002017043 | D46: 44.16 | G46: 44.16 | H46: 17.66 | J46: 17.66
A47: 44 | C47: 00002017044 | D47: 36.57 | G47: 36.57 | H47: 14.63 | J47: 14.63
A48: 45 | C48: 00002017045 | D48: 79.1 | G48: 79.1 | H48: 31.64 | J48: 31.64
A49: 46 | C49: 00002017046 | D49: 40.16 | G49: 40.16 | H49: 16.06 | J49: 16.06
A50: 47 | C50: 00002017047 | D50: 35.53 | G50: 35.53 | H50: 14.21 | J50: 14.21
A51: 48 | C51: 00002017048 | D51: 36.79 | G51: 36.79 | H51: 14.72 | J51: 14.72
A52: 49 | C52: 00002017049 | D52: 40.68 | G52: 40.68 | H52: 16.27 | J52: 16.27
A53: 50 | C53: 00002017050 | D53: 34.95 | E53: 3 | G53: 37.95 | H53: 15.18 | J53: 15.18
A54: 51 | C54: 00002017051 | D54: 60.98 | G54: 60.98 | H54: 24.39 | J54: 24.39
A55: 52 | C55: 00002017052 | D55: 41.39 | G55: 41.39 | H55: 16.56 | J55: 16.56
A56: 53 | C56: 00002017053 | D56: 43.23 | G56: 43.23 | H56: 17.29 | J56: 17.29
A57: 54 | C57: 00002017054 | D57: 36.54 | E57: 3 | G57: 39.54 | H57: 15.82 | J57: 15.82
A58: 55 | C58: 00002017055 | D58: 54.08 | E58: 3 | G58: 57.08 | H58: 22.83 | J58: 22.83
A59: 56 | C59: 00002017056 | D59: 45.15 | E59: 3 | G59: 48.15 | H59: 19.26 | J59: 19.26
A60: 57 | C60: 00002017057 | D60: 43.39 | G60: 43.39 | H60: 17.36 | J60: 17.36
A61: 58 | C61: 00002017058 | D61: 45.06 | G61: 45.06 | H61: 18.02 | J61: 18.02
A62: 59 | C62: 00002017059 | D62: 50.43 | E62: 3 | G62: 53.43 | H62: 21.37 | J62: 21.37
A63: 60 | C63: 00002017060 | D63: 48.57 | G63: 48.57 | H63: 19.43 | J63: 19.43
A64: 61 | C64: 00002017061 | D64: 56.93 | G64: 56.93 | H64: 22.77 | J64: 22.77
A65: 62 | C65: 00002017062 | D65: 36.49 | G65: 36.49 | H65: 14.60 | J65: 14.60
A66: 63 | C66: 00002017063 | D66: 52.19 | E66: 3 | G66: 55.19 | H66: 22.08 | J66: 22.08
A67: 64 | C67: 00002017064 | D67: 46.85 | E67: 3 | G67: 49.85 | H67: 19.94 | J67: 19.94
A68: 65 | C68: 00002017065 | D68: 34.6 | E68: 3 | G68: 37.6 | H68: 15.04 | J68: 15.04
A69: 66 | C69: 00002017066 | D69: 33.67 | E69: 3 | G69: 36.67 | H69: 14.67 | J69: 14.67
A70: 67 | C70: 00002017067 | D70: 38.16 | G70: 38.16 | H70: 15.26 | J70: 15.26
A71: 68 | C71: 00002017068 | D71: 39.55 | G71: 39.55 | H71: 15.82 | J71: 15.82
A72: 69 | C72: 00002017069 | D72: 60.43 | E72: 3 | G72: 63.43 | H72: 25.37 | J72: 25.37
A73: 70 | C73: 00002017070 | D73: 38.24 | G73: =SUM(D73:F73) -> 38.24 | H73: =G73*0.4 -> 15.30 | J73: 15.30
A74: 71 | C74: 00002017071 | D74: 53.12 | G74: 53.12 | H74: 21.25 | J74: 21.25
A75: 72 | C75: 00002017072 | D75: 50.35 | G75: 50.35 | H75: 20.14 | J75: 20.14
A76: 73 | C76: 00002017073 | D76: 52.33 | G76: 52.33 | H76: 20.93 | J76: 20.93
A77: 74 | C77: 00002017074 | D77: 50.35 | G77: 50.35 | H77: 20.14 | J77: 20.14
A78: 75 | C78: 00002017075 | D78: 53.5 | G78: 53.5 | H78: 21.40 | J78: 21.40
A79: 76 | C79: 00002017076 | D79: 47.91 | E79: 3 | G79: 50.91 | H79: 20.36 | J79: 20.36
A80: 77 | C80: 00002017077 | D80: 42.98 | E80: 3 | G80: 45.98 | H80: 18.39 | J80: 18.39
A81: 78 | C81: 00002017078 | D81: 50.41 | G81: 50.41 | H81: 20.16 | J81: 20.16
A82: 79 | C82: 00002017079 | D82: 42.16 | G82: 42.16 | H82: 16.86 | J82: =SUM(H82:I82) -> 16.86
A83: 80 | C83: 00002017080 | D83: 49.53 | E83: 3 | G83: 52.53 | H83: 21.01 | J83: 21.01
A84: 81 | C84: 00002017081 | D84: 36.71 | E84: 3 | G84: 39.71 | H84: 15.88 | J84: 15.88
A85: 82 | C85: 00002017082 | D85: 45.42 | G85: 45.42 | H85: 18.17 | J85: 18.17
A86: 83 | C86: 00002017083 | D86: 39.04 | E86: 3 | G86: 42.04 | H86: 16.82 | J86: 16.82
A87: 84 | C87: 00002017084 | D87: 45.5 | G87: 45.5 | H87: 18.20 | J87: 18.20
A88: 85 | C88: 00002017085 | D88: 36.11 | G88: 36.11 | H88: 14.44 | J88: 14.44
A89: 86 | C89: 00002017086 | D89: 34.49 | G89: 34.49 | H89: 13.80 | J89: 13.80
A90: 87 | C90: 00002017087 | D90: 48.65 | E90: 3 | G90: 51.65 | H90: 20.66 | J90: 20.66
A91: 88 | C91: 00002017088 | D91: 30.49 | E91: 3 | G91: 33.49 | H91: 13.40 | J91: 13.40
A92: 89 | C92: 00002017089 | D92: 52.11 | E92: 3 | G92: 55.11 | H92: 22.04 | J92: 22.04
A93: 90 | C93: 00002017090 | D93: 37.72 | G93: 37.72 | H93: 15.09 | J93: 15.09
A94: 91 | C94: 00002017091 | D94: 40.98 | E94: 3 | G94: 43.98 | H94: 17.59 | J94: 17.59
A95: 92 | C95: 00002017092 | D95: 37.83 | G95: 37.83 | H95: 15.13 | J95: 15.13
A96: 93 | C96: 00002017093 | D96: 36.82 | G96: 36.82 | H96: 14.73 | J96: 14.73
A97: 94 | C97: 00002017094 | D97: 78.85 | E97: 3 | G97: 81.85 | H97: 32.74 | J97: 32.74
A98: 95 | C98: 00002017095 | D98: 35.42 | G98: 35.42 | H98: 14.17 | J98: 14.17
A99: 96 | C99: 00002017096 | D99: 37.09 | G99: 37.09 | H99: 14.84 | J99: 14.84
A100: 97 | C100: 00002017097 | D100: 57.23 | G100: 57.23 | H100: 22.89 | J100: 22.89
A101: 98 | C101: 00002017098 | D101: 40.24 | G101: 40.24 | H101: 16.10 | J101: 16.10
A102: 99 | C102: 00002017099 | D102: 37.39 | E102: 3 | G102: 40.39 | H102: 16.16 | J102: 16.16
A103: 100 | C103: 00002017100 | D103: 45.86 | G103: 45.86 | H103: 18.34 | J103: 18.34
A104: 101 | C104: 00002017101 | D104: 40.24 | G104: 40.24 | H104: 16.10 | J104: 16.10
A105: 102 | C105: 00002017102 | D105: 33.06 | E105: 3 | G105: =SUM(D105:F105) -> 36.06 | H105: 14.42 | J105: 14.42
A106: 103 | C106: 00002017103 | D106: 42.68 | E106: 3 | G106: 45.68 | H106: 18.27 | J106: 18.27
A107: 104 | C107: 00002017104 | D107: 41.75 | G107: 41.75 | H107: 16.70 | J107: 16.70
A108: 105 | C108: 00002017105 | D108: 24.79 | G108: 24.79 | H108: 9.92 | J108: 9.92
A109: 106 | C109: 00002017106 | D109: 48.68 | E109: 3 | G109: 51.68 | H109: 20.67 | J109: 20.67
A110: 107 | C110: 00002017107 | D110: 39.61 | G110: 39.61 | H110: 15.84 | J110: 15.84
A111: 108 | C111: 00002017108 | D111: 36.1 | G111: 36.1 | H111: 14.44 | J111: 14.44
A112: 109 | C112: 00002017109 | D112: 34.38 | G112: 34.38 | H112: 13.75 | J112: 13.75
A113: 110 | C113: 00002017110 | D113: 48.93 | E113: 3 | G113: 51.93 | H113: 20.77 | J113: 20.77
A114: 111 | C114: 00002017111 | D114: 32.79 | G114: 32.79 | H114: 13.12 | J114: 13.12
A115: 112 | C115: 00002017112 | D115: 29.99 | G115: 29.99 | H115: 12.00 | J115: 12.00
A116: 113 | C116: 00002017113 | D116: 47.26 | E116: 3 | G116: 50.26 | H116: 20.10 | J116: 20.10
A117: 114 | C117: 00002017114 | D117: 0 | G117: 0 | H117: 0 | J117: 0 | K117: 缺考
A118: 115 | C118: 00002017115 | D118: 28.57 | E118: 3 | G118: 31.57 | H118: 12.63 | J118: 12.63
A119: 116 | C119: 00002017116 | D119: 41.81 | E119: 3 | G119: 44.81 | H119: 17.92 | J119: 17.92
A120: 117 | C120: 00002017117 | D120: 28.32 | G120: 28.32 | H120: 11.33 | J120: 11.33
A121: 118 | C121: 00002017118 | D121: 35.09 | G121: 35.09 | H121: 14.04 | J121: 14.04
A122: 119 | C122: 00002017119 | D122: 44.98 | G122: 44.98 | H122: 17.99 | J122: 17.99
A123: 120 | C123: 00002017120 | D123: 31.67 | G123: 31.67 | H123: 12.67 | J123: 12.67
A124: 121 | C124: 00002017121 | D124: 30.35 | E124: 3 | G124: 33.35 | H124: 13.34 | J124: 13.34
A125: 122 | C125: 00002017122 | D125: 32.55 | G125: 32.55 | H125: 13.02 | J125: 13.02
A126: 123 | C126: 00002017123 | D126: 31.67 | G126: 31.67 | H126: 12.67 | J126: 12.67
A127: 124 | C127: 00002017124 | D127: 38.16 | E127: 3 | G127: 41.16 | H127: 16.46 | J127: 16.46
A128: 125 | C128: 00002017125 | D128: 38.55 | G128: 38.55 | H128: 15.42 | J128: 15.42
A129: 126 | C129: 00002017126 | D129: 31.07 | G129: 31.07 | H129: 12.43 | J129: 12.43
A130: 127 | C130: 00002017127 | D130: 30.35 | G130: 30.35 | H130: 12.14 | J130: 12.14
A131: 128 | C131: 00002017128 | D131: 24.43 | E131: 3 | G131: 27.43 | H131: 10.97 | J131: 10.97
A132: 129 | C132: 00002017129 | D132: 26.76 | G132: 26.76 | H132: 10.70 | J132: 10.70
A133: 130 | C133: 00002017130 | D133: 36.19 | G133: 36.19 | H133: 14.48 | J133: 14.48
A134: 131 | C134: 00002017131 | D134: 28.52 | E134: 3 | G134: 31.52 | H134: 12.61 | J134: 12.61
A135: 132 | C135: 00002017132 | D135: 33.8 | G135: 33.8 | H135: 13.52 | J135: 13.52
A136: 133 | C136: 00002017133 | D136: 34.46 | G136: 34.46 | H136: 13.78 | J136: 13.78
A137: 134 | C137: 00002017134 | D137: 36.9 | E137: 3 | G137: =SUM(D137:F137) -> 39.9 | H137: =G137*0.4 -> 15.96 | J137: 15.96
A138: 135 | C138: 00002017135 | D138: 26.63 | G138: 26.63 | H138: 10.65 | J138: 10.65
A139: 136 | C139: 00002017136 | D139: 23.2 | G139: 23.2 | H139: 9.28 | J139: 9.28
A140: 137 | C140: 00002017137 | D140: 44.49 | G140: 44.49 | H140: 17.80 | J140: 17.80
A141: 138 | C141: 00002017138 | D141: 33.12 | G141: 33.12 | H141: 13.25 | J141: 13.25
A142: 139 | C142: 00002017139 | D142: 33.94 | G142: 33.94 | H142: 13.58 | J142: 13.58
A143: 140 | C143: 00002017140 | D143: 39.94 | E143: 3 | G143: 42.94 | H143: 17.18 | J143: 17.18
A144: 141 | C144: 00002017141 | D144: 40.57 | G144: 40.57 | H144: 16.23 | J144: 16.23
A145: 142 | C145: 00002017142 | D145: 48.13 | E145: 3 | G145: 51.13 | H145: 20.45 | J145: 20.45
A146: 143 | C146: 00002017143 | D146: 59.91 | E146: 3 | G146: 62.91 | H146: 25.16 | J146: =SUM(H146:I146) -> 25.16
A147: 144 | C147: 00002017144 | D147: 45.31 | E147: 3 | G147: 48.31 | H147: 19.32 | J147: 19.32
A148: 145 | C148: 00002017145 | D148: 45.5 | E148: 3 | G148: 48.5 | H148: 19.40 | J148: 19.40
A149: 146 | C149: 00002017146 | D149: 0 | J149: 0 | K149: 缺考
A150: 147 | C150: 00002017147 | D150: 57.01 | G150: 57.01 | H150: 22.80 | J150: 22.80
A151: 148 | C151: 00002017148 | D151: 46.13 | E151: 3 | G151: 49.13 | H151: 19.65 | J151: 19.65
A152: 149 | C152: 00002017149 | D152: 47.31 | E152: 3 | G152: 50.31 | H152: 20.12 | I152: 2.5 | J152: 22.62
A153: 150 | C153: 00002017150 | D153: 46.65 | E153: 3 | G153: 49.65 | H153: 19.86 | J153: 19.86
A154: 151 | C154: 00002017151 | D154: 49.72 | E154: 3 | G154: 52.72 | H154: 21.09 | J154: 21.09
A155: 152 | C155: 00002017152 | D155: 48.07 | E155: 3 | G155: 51.07 | H155: 20.43 | J155: 20.43
A156: 153 | C156: 00002017153 | D156: 49.83 | E156: 3 | G156: 52.83 | H156: 21.13 | J156: 21.13
A157: 154 | C157: 00002017154 | D157: 43.1 | E157: 3 | G157: 46.1 | H157: 18.44 | I157: 2.5 | J157: 20.94
A158: 155 | C158: 00002017155 | D158: 46.57 | G158: 46.57 | H158: 18.63 | J158: 18.63
A159: 156 | C159: 00002017156 | D159: 0 | G159: 0 | H159: 0 | J159: 0 | K159: 缺考
A160: 157 | C160: 00002017157 | D160: 0 | G160: 0 | H160: 0 | J160: 0 | K160: 缺考
A161: 158 | C161: 00002017158 | D161: 34.49 | E161: 3 | G161: 37.49 | H161: 15.00 | J161: 15.00
A162: 159 | C162: 00002017159 | D162: 38.43 | E162: 3 | G162: 41.43 | H162: 16.57 | J162: 16.57
A163: 160 | C163: 00002017160 | D163: 39.09 | E163: 3 | G163: 42.09 | H163: 16.84 | I163: 2.5 | J163: 19.34
A164: 161 | C164: 00002017161 | D164: 27.28 | E164: 3 | G164: 30.28 | H164: 12.11 | J164: 12.11
A165: 162 | C165: 00002017162 | D165: 38.18 | G165: 38.18 | H165: 15.27 | I165: 2.5 | J165: 17.77
A166: 163 | C166: 00002017163 | D166: 50.51 | E166: 3 | G166: 53.51 | H166: 21.40 | J166: 21.40
A167: 164 | C167: 00002017164 | D167: 48.46 | G167: 48.46 | H167: 19.38 | J167: 19.38
A168: 165 | C168: 00002017165 | D168: 38.08 | G168: 38.08 | H168: 15.23 | I168: 2.5 | J168: 17.73
A169: 166 | C169: 00002017166 | D169: 53.2 | E169: 3 | G169: =SUM(D169:F169) -> 56.2 | H169: 22.48 | J169: 22.48
A170: 167 | C170: 00002017167 | D170: 42.27 | G170: 42.27 | H170: 16.91 | J170: 16.91
A171: 168 | C171: 00002017168 | D171: 32.02 | G171: 32.02 | H171: 12.81 | I171: 2.5 | J171: 15.31
A172: 169 | C172: 00002017169 | D172: 49.14 | G172: 49.14 | H172: 19.66 | J172: 19.66
A173: 170 | C173: 00002017170 | D173: 51.61 | G173: 51.61 | H173: 20.64 | J173: 20.64
A174: 171 | C174: 00002017171 | D174: 39.94 | G174: 39.94 | H174: 15.98 | I174: 2.5 | J174: 18.48
A175: 172 | C175: 00002017172 | D175: 50.54 | G175: 50.54 | H175: 20.22 | J175: 20.22
A176: 173 | C176: 00002017173 | D176: 56.27 | G176: 56.27 | H176: 22.51 | J176: 22.51
A177: 174 | C177: 00002017174 | D177: 50.3 | E177: 3 | G177: 53.3 | H177: 21.32 | J177: 21.32
A178: 175 | C178: 00002017175 | D178: 41.29 | E178: 3 | G178: 44.29 | H178: 17.72 | I178: 2.5 | J178: 20.22
A179: 176 | C179: 00002017176 | D179: 0 | G179: 0 | H179: 0 | J179: 0 | K179: 缺考
A180: 177 | C180: 00002017177 | D180: 47.78 | E180: 3 | G180: 50.78 | H180: 20.31 | J180: 20.31
A181: 178 | C181: 00002017178 | D181: 58.05 | E181: 3 | G181: 61.05 | H181: 24.42 | J181: 24.42
A182: 179 | C182: 00002017179 | D182: 52.84 | E182: 3 | G182: 55.84 | H182: 22.34 | I182: 2.5 | J182: 24.84
A183: 180 | C183: 00002017180 | D183: 0 | G183: 0 | H183: 0 | J183: 0 | K183: 缺考
A184: 181 | C184: 00002017181 | D184: 44.51 | E184: 3 | G184: 47.51 | H184: 19.00 | I184: 2.5 | J184: 21.50
A185: 182 | C185: 00002017182 | D185: 58.87 | E185: 3 | G185: 61.87 | H185: 24.75 | J185: 24.75
A186: 183 | C186: 00002017183 | D186: 60.84 | G186: 60.84 | H186: 24.34 | I186: 2.5 | J186: 26.84
A187: 184 | C187: 00002017184 | D187: 51.91 | E187: 3 | G187: 54.91 | H187: 21.96 | J187: 21.96
A188: 185 | C188: 00002017185 | D188: 56.29 | E188: 3 | G188: 59.29 | H188: 23.72 | J188: 23.72
A189: 186 | C189: 00002017186 | D189: 59.2 | E189: 3 | G189: 62.2 | H189: 24.88 | J189: 24.88
A190: 187 | C190: 00002017187 | D190: 47.91 | G190: 47.91 | H190: 19.16 | J190: 19.16
A191: 188 | C191: 00002017188 | D191: 0 | G191: 0 | H191: 0 | J191: 0 | K191: 缺考
A192: 189 | C192: 00002017189 | D192: 46.73 | E192: 3 | G192: 49.73 | H192: 19.89 | J192: 19.89
A193: 190 | C193: 00002017190 | D193: 51.03 | G193: 51.03 | H193: 20.41 | J193: 20.41
A194: 191 | C194: 00002017191 | D194: 64.57 | E194: 3 | G194: 67.57 | H194: 27.03 | J194: 27.03
A195: 192 | C195: 00002017192 | D195: 61.75 | E195: 3 | G195: 64.75 | H195: 25.90 | J195: 25.90
A196: 193 | C196: 00002017193 | D196: 61.97 | E196: 3 | G196: 64.97 | H196: 25.99 | J196: 25.99
A197: 194 | C197: 00002017194 | D197: 65.81 | G197: 65.81 | H197: 26.32 | J197: 26.32
A198: 195 | C198: 00002017195 | D198: 61.42 | E198: 3 | G198: 64.42 | H198: 25.77 | I198: 2.5 | J198: 28.27
A199: 196 | C199: 00002017196 | D199: 64.93 | E199: 3 | G199: 67.93 | H199: 27.17 | J199: 27.17
A200: 197 | C200: 00002017197 | D200: 58.32 | G200: 58.32 | H200: 23.33 | J200: 23.33
... 109 more rows
